bitfinex/quotes_SOLUSD_20240716
["timestamp","ask_amount","ask_price","bid_price","bid_amount"]
[1721149625426,6.2227,160.71,160.69,15.394]
[1721149625651,6.2216,160.73,160.69,15.394]
[1721149625827,36.2221,160.72,160.69,15.394]
[1721149626153,6.2227,160.71,160.68,0.8405567]
[1721149626325,34.2317,160.76,160.68,0.8405567]
[1721149626326,6.2231,160.69,160.68,0.8405567]
[1721149626526,20.0,160.69,160.68,0.8405567]
[1721149627226,71.2231,160.69,160.68,0.8405567]
[1721149627443,26.2231,160.69,160.68,0.8405567]
[1721149627755,20.0,160.69,160.68,0.8405567]
[1721149628456,10.0,160.76,160.68,0.8405567]
[1721149628661,10.0,160.74,160.68,23.0220567]
[1721149628824,10.0,160.8,160.69,0.56767073]
[1721149629030,10.0,160.8,160.7,34.0376354]
[1721149629245,10.0,160.78,160.7,33.47]
[1721149629441,16.2198,160.78,160.7,33.47]
[1721149629639,10.0,160.76,160.7,33.47]
[1721149629932,10.0,160.76,160.68,23.0220567]
[1721149629933,16.2213,160.74,160.68,23.0220567]
[1721149630335,16.2213,160.74,160.68,0.8405567]
[1721149630336,10.0,160.7,160.68,0.8405567]
[1721149630548,20.0,160.69,160.68,0.8405567]
[1721149630751,44.9031,160.69,160.68,0.8405567]
[1721149631047,89.9031,160.69,160.68,0.8405567]
[1721149631254,71.2231,160.69,160.68,0.8405567]
[1721149631648,20.0,160.69,160.68,0.8405567]
[1721149631843,26.2231,160.69,160.68,0.8405567]
[1721149632166,71.2231,160.69,160.68,0.8405567]
[1721149632732,89.9031,160.69,160.68,0.8405567]
[1721149633058,71.2231,160.69,160.68,0.8405567]
[1721149633435,65.0,160.69,160.68,0.8405567]
[1721149633653,20.0,160.69,160.68,0.8405567]
[1721149634427,26.2231,160.69,160.68,0.8405567]
[1721149635234,20.0,160.69,160.68,0.8405567]
[1721149635443,26.2231,160.69,160.68,0.8405567]
[1721149635647,20.0,160.69,160.68,0.8405567]
[1721149636264,26.2231,160.69,160.68,0.8405567]
[1721149636553,20.0,160.69,160.68,0.8405567]
[1721149638362,26.2231,160.69,160.68,0.8405567]
[1721149639638,71.2231,160.69,160.68,0.8405567]
[1721149640569,105.461,160.69,160.68,5.67e-05]
[1721149640944,111.9082,160.69,160.68,5.67e-05]
[1721149643776,10.0,160.58,160.54,15.8263]
[1721149643943,6.2281,160.57,160.54,15.8263]
[1721149644257,6.2285,160.55,160.54,15.8263]
[1721149644468,30.0,160.56,160.52,0.8405567]
[1721149644675,20.0,160.56,160.52,0.8405567]
[1721149645046,10.0,160.56,160.52,0.8405567]
[1721149645477,20.0,160.57,160.52,0.8405567]
[1721149645643,10.0,160.56,160.52,0.8405567]
[1721149645843,20.0,160.55,160.52,0.8405567]
[1721149646657,20.0,160.57,160.52,0.8405567]
[1721149646970,31.1099965,160.76,160.52,0.8405567]
[1721149646971,18.68,160.82,160.57,35.0822]
[1721149647157,10.0,160.77,160.66,33.47]
[1721149647465,10.0,160.81,160.66,33.47]
[1721149647667,10.0,160.82,160.7,33.47]
[1721149647980,6.2208,160.76,160.67,23.40987892]
[1721149648149,69.3866507,160.68,160.67,22.6108]
[1721149648842,2.1871507,160.68,160.67,51.2097]
[1721149649035,28.68,160.83,160.67,71.2097]
[1721149649240,6.2185,160.81,160.69,33.47]
[1721149649440,10.0,160.83,160.69,33.47]
[1721149649764,10.0,160.82,160.69,33.47]
[1721149650270,6.2194,160.79,160.69,33.47]
[1721149650464,20.0,160.78,160.69,33.47]
[1721149650658,26.22,160.78,160.69,33.47]
[1721149650859,20.0,160.78,160.69,33.47]
[1721149651085,20.0,160.78,160.67,6.2097]
[1721149651386,16.2197,160.78,160.67,6.2097]
[1721149651584,20.0,160.77,160.68,1.24192412]
[1721149651779,20.0,160.79,160.68,46.24192412]
[1721149651975,20.0,160.79,160.68,45.0]
[1721149652190,6.2184,160.82,160.69,1.24421003]
[1721149652486,10.0,160.84,160.72,33.47]
[1721149652689,36.9297,160.88,160.72,33.47]
[1721149652690,21.3895,160.88,160.76,33.47]
[1721149652893,31.3895,160.88,160.77,1.243794]
[1721149653061,31.3895,160.88,160.77,7.706094]
[1721149653699,6.2162,160.87,160.77,7.706094]
[1721149654363,12.4338,160.88,160.78,46.24079124]
[1721149654563,6.218,160.88,160.78,45.0]
[1721149655087,6.218,160.88,160.8,33.47]
[1721149655266,6.218,160.9,160.81,45.41676385]
[1721149655463,6.218,160.9,160.82,1.24319599]
[1721149655685,6.218,160.9,160.83,1.24319502]
[1721149655994,6.218,160.9,160.84,34.71309718]
[1721149656191,15.8247,160.98,160.88,39.5302]
[1721149656379,6.2112,161.0,160.89,1.24271086]
[1721149656586,25.525,161.03,160.89,45.0]
[1721149656587,6.2116,160.99,160.89,45.0]
[1721149656764,10.0,161.01,160.89,45.0]
[1721149656967,10.0,160.98,160.88,39.5302]
[1721149657172,10.0,160.98,160.88,33.47]
[1721149657173,6.2127,160.96,160.88,33.47]
[1721149657392,16.2127,160.96,160.88,33.47]
[1721149657579,16.2127,160.96,160.84,33.47]
[1721149657580,10.0,160.96,160.84,33.47]
[1721149657902,10.0,160.93,160.82,6.1986]
[1721149658192,6.2142,160.92,160.82,6.1986]
[1721149658513,6.2138,160.93,160.82,6.1986]
[1721149658664,6.2149,160.91,160.82,6.1986]
[1721149658860,26.215,160.9,160.82,6.1986]
[1721149659065,20.0,160.9,160.82,6.1986]
[1721149659287,20.0,160.91,160.82,6.1986]
[1721149659488,20.0,160.92,160.82,6.1986]
[1721149659698,20.0,160.94,160.84,33.47]
[1721149661899,20.0,160.89,160.77,6.3406]
[1721149662189,6.2161,160.88,160.77,6.3406]
[1721149662565,10.0,160.88,160.77,6.3406]
[1721149662765,26.2162,160.87,160.77,6.3406]
[1721149663068,20.0,160.87,160.77,6.3406]
[1721149663669,26.2157,160.89,160.77,6.3406]
[1721149663891,20.0,160.89,160.77,6.3406]
[1721149664378,16.2142,160.92,160.78,45.0]
[1721149664694,16.2142,160.92,160.79,1.24334172]
[1721149664874,16.2142,160.92,160.8,1.24334807]
[1721149665077,6.2138,160.93,160.81,40.87]
[1721149665293,6.2142,160.92,160.82,46.24319344]
[1721149665474,6.2147,160.91,160.83,1.2432816]
[1721149665681,6.2147,160.91,160.81,40.87]
[1721149666200,6.2147,160.91,160.82,1.08400647]
[1721149666689,6.2141,160.93,160.83,1.08393906]
[1721149666866,20.0,160.92,160.83,1.08393906]
[1721149667275,20.0,160.92,160.81,40.87]
[1721149667276,55.0,160.91,160.77,47.2106]
[1721149667476,6.216,160.88,160.78,45.0]
[1721149667784,6.2159,160.88,160.77,47.2106]
[1721149667985,79.2169,160.91,160.77,6.3406]
[1721149667986,10.0,160.87,160.77,6.3406]
[1721149668169,16.2163,160.87,160.77,6.3406]
[1721149668376,6.2157,160.89,160.77,6.3406]
[1721149668598,6.2157,160.89,160.78,1.15596289]
[1721149668809,20.0,160.88,160.78,1.15596289]
[1721149669500,20.0,160.9,160.78,46.15596289]
[1721149669799,20.0,160.9,160.78,45.0]
[1721149670098,26.2145,160.92,160.78,45.0]
[1721149670801,21.7232,160.95,160.8,40.87]
[1721149670996,21.7232,160.95,160.81,46.24316528]
[1721149671178,21.7234,160.95,160.81,46.24316528]
[1721149671373,10.0,160.94,160.81,45.0]
[1721149671700,21.7233,160.95,160.82,1.24069299]
[1721149671872,15.51,160.95,160.83,1.24061584]
[1721149672220,20.0,160.94,160.83,1.24061584]
[1721149672385,30.0,160.94,160.81,45.0]
[1721149672570,6.215,160.9,160.81,45.0]
[1721149672766,6.2151,160.9,160.81,45.0]
[1721149673513,10.0,160.9,160.77,6.3406]
[1721149673706,6.2158,160.88,160.77,6.3406]
[1721149674008,6.2163,160.87,160.77,6.3406]
[1721149674300,6.2157,160.89,160.77,6.3406]
[1721149674490,20.0,160.88,160.77,6.3406]
[1721149674690,20.0,160.88,160.78,0.80222365]
[1721149674900,6.215,160.91,160.77,6.3406]
[1721149675082,20.0,160.9,160.79,0.8204475]
[1721149675275,20.0,160.9,160.78,45.0]
[1721149675470,20.0,160.91,160.78,45.0]
[1721149675798,20.0,160.91,160.8,40.87]
[1721149675995,20.0,160.93,160.81,45.0]
[1721149676894,6.2143,160.92,160.8,40.87]
[1721149677077,20.0,160.91,160.81,45.0]
[1721149677279,10.0,160.92,160.81,45.0]
[1721149677591,20.0,160.91,160.81,45.0]
[1721149678181,20.0,160.91,160.82,0.87251491]
[1721149678384,6.2147,160.91,160.8,40.87]
[1721149678595,6.2147,160.91,160.81,0.87190954]
[1721149678784,6.2143,160.92,160.81,0.87190954]
[1721149679110,20.0,160.91,160.82,1.24326189]
[1721149679307,20.0,160.91,160.83,1.24322861]
[1721149679904,20.0,160.91,160.79,40.87]
[1721149680099,20.0,160.91,160.8,45.0]
[1721149680299,30.0,160.94,160.83,33.44]
[1721149680489,6.2146,160.92,160.83,33.44]
[1721149680690,20.0,160.91,160.83,33.44]
[1721149681178,15.51,160.95,160.83,33.44]
[1721149681179,20.0,160.93,160.84,45.0]
[1721149681385,20.0,160.94,160.84,45.0]
[1721149681597,16.6499,160.99,160.85,6.4408]
[1721149681917,6.2123,160.97,160.86,45.0]
[1721149682080,6.2127,160.96,160.86,45.0]
[1721149682280,6.2127,160.96,160.86,78.44]
[1721149682780,6.2124,160.97,160.86,79.41457045]
[1721149683201,6.2124,160.97,160.86,79.53722895]
[1721149683504,6.2132,160.95,160.86,78.44]
[1721149683810,6.2136,160.94,160.86,78.44]
[1721149684313,6.2132,160.95,160.86,78.44]
[1721149684480,6.2138,160.94,160.86,33.44]
[1721149684831,6.2128,160.96,160.86,33.44]
[1721149685118,20.0,160.95,160.86,33.44]
[1721149685479,20.0,160.95,160.87,1.2405199]
[1721149685694,25.5568,161.0,160.87,1.2405199]
[1721149685902,6.212,160.98,160.87,46.2405199]
[1721149686481,6.2123,160.97,160.87,45.0]
[1721149686692,6.2127,160.96,160.87,45.0]
[1721149687102,10.0,160.97,160.87,45.0]
[1721149687315,65.0,160.96,160.85,6.4408]
[1721149687615,71.2128,160.96,160.85,6.4408]
[1721149687802,20.0,160.96,160.85,6.4408]
[1721149688010,20.0,160.98,160.85,6.4408]
[1721149688384,10.0,160.97,160.85,6.4408]
[1721149688589,26.2128,160.96,160.85,6.4408]
[1721149689201,20.0,160.96,160.85,6.4408]
[1721149689401,20.0,160.96,160.86,46.03438327]
[1721149689588,26.2127,160.96,160.86,45.0]
[1721149690090,53.51064859,161.17,160.86,45.0]
[1721149690091,26.5667,161.03,160.89,33.44]
[1721149690287,26.5667,161.03,160.9,45.0]
[1721149690491,6.2105,161.02,160.9,45.0]
[1721149690710,6.2108,161.01,160.9,45.0]
[1721149690911,26.5667,161.03,160.93,33.44]
[1721149691491,32.7769,161.03,160.93,33.44]
[1721149691691,22.7769,161.03,160.93,33.44]
[1721149691893,15.2021,161.07,160.94,1.24020943]
[1721149692118,6.2091,161.06,160.94,46.24020943]
[1721149692416,6.2094,161.05,160.97,33.44]
[1721149692920,0.8405567,161.09,160.98,1.24202617]
[1721149693108,0.8405567,161.09,160.99,1.24210968]
[1721149693803,7.0482567,161.09,161.0,6.4306]
[1721149694128,0.8405567,161.09,161.01,1.24188216]
[1721149694294,7.0485567,161.09,161.0,6.4306]
[1721149694494,10.8405567,161.09,161.0,6.4306]
[1721149694700,6.2083,161.08,161.01,1.02134438]
[1721149694918,6.2083,161.08,161.0,6.4306]
[1721149695316,20.0,161.07,161.0,6.4306]
[1721149695510,6.21,161.03,161.0,6.4306]
[1721149695724,6.2085,161.07,161.0,6.4306]
[1721149696214,0.8405567,161.09,161.0,6.4306]
[1721149696425,10.0,161.08,161.0,6.4306]
[1721149696728,20.0,161.07,161.0,6.4306]
[1721149696914,6.2089,161.06,160.96,39.6419]
[1721149697217,20.0,161.05,160.96,39.6419]
[1721149697393,20.0,161.07,160.96,39.6419]
[1721149697589,26.2085,161.07,160.96,39.6419]
[1721149697789,20.0,161.07,160.96,39.6419]
[1721149698214,30.0,161.07,160.96,39.6419]
[1721149698418,45.0,161.06,160.96,39.6419]
[1721149698593,20.0,161.05,160.96,39.6419]
[1721149699230,26.2093,161.05,160.96,39.6419]
[1721149699715,20.0,161.05,160.96,39.6419]
[1721149699909,6.2081,161.08,160.96,39.6419]
[1721149700114,20.0,161.07,160.96,39.6419]
[1721149700294,20.0,161.07,160.97,45.0]
[1721149701010,20.0,161.08,160.97,45.0]
[1721149701525,26.2081,161.08,160.97,45.0]
[1721149702023,6.2089,161.06,160.97,45.0]
[1721149702196,26.2081,161.08,160.97,45.0]
[1721149702596,20.0,161.08,160.97,45.0]
[1721149702797,20.8405567,161.09,160.97,45.0]
[1721149703012,10.0,161.08,160.96,39.6419]
[1721149703233,65.0,161.07,160.96,39.6419]
[1721149703398,20.0,161.07,160.96,39.6419]
[1721149703604,6.2092,161.06,160.96,39.6419]
[1721149703799,26.2085,161.07,160.96,39.6419]
[1721149704014,6.2089,161.06,160.96,39.6419]
[1721149704216,20.0,161.07,160.97,0.9132535]
[1721149704526,20.0,161.08,160.97,45.0]
[1721149704696,6.2082,161.08,160.97,45.0]
[1721149704896,20.0,161.07,160.97,45.0]
[1721149705427,20.0,161.08,160.97,45.0]
[1721149705893,26.2081,161.08,160.97,45.0]
[1721149706537,6.2084,161.07,160.97,45.0]
[1721149706698,20.0,161.06,160.97,45.0]
[1721149706900,26.2091,161.06,160.96,39.6419]
[1721149707102,20.0,161.06,160.96,39.6419]
[1721149707396,20.0,161.07,160.96,39.6419]
[1721149707626,20.0,161.08,160.96,39.6419]
[1721149707817,20.8405567,161.09,160.96,39.6419]
[1721149708019,45.0,161.08,160.96,39.6419]
[1721149708209,20.0,161.07,160.96,39.6419]
[1721149708407,10.0,160.93,160.84,6.48599759]
[1721149708619,6.215,160.91,160.79,48.5933]
[1721149708820,20.0,160.9,160.79,48.5933]
[1721149709011,6.2155,160.89,160.79,48.5933]
[1721149709338,20.0,160.9,160.79,48.5933]
[1721149709626,20.0,160.91,160.79,48.5933]
[1721149709842,6.2143,160.92,160.79,48.5933]
[1721149710047,6.2151,160.9,160.79,48.5933]
[1721149710207,10.0,160.92,160.79,48.5933]
[1721149710540,6.2156,160.89,160.79,48.5933]
[1721149710840,15.5348,160.93,160.79,48.5933]
[1721149710841,6.215,160.9,160.79,48.5933]
[1721149711013,6.216,160.88,160.79,48.5933]
[1721149711213,10.0,160.92,160.79,48.5933]
[1721149711514,6.2154,160.89,160.79,48.5933]
[1721149711715,6.2154,160.89,160.8,1.2434599]
[1721149712025,15.5348,160.93,160.79,48.5933]
[1721149712345,6.2146,160.91,160.79,48.5933]
[1721149712514,20.0,160.9,160.79,48.5933]
[1721149712835,6.2154,160.89,160.79,48.5933]
[1721149713233,65.0,160.92,160.79,48.5933]
[1721149713234,6.2149,160.91,160.79,48.5933]
[1721149713414,65.0,160.9,160.79,48.5933]
[1721149713617,26.2151,160.9,160.79,48.5933]
[1721149713916,20.0,160.9,160.79,48.5933]
[1721149714252,20.0,160.91,160.79,48.5933]
[1721149714541,6.2146,160.92,160.79,48.5933]
[1721149714717,20.0,160.91,160.79,48.5933]
[1721149715035,10.0,160.92,160.79,48.5933]
[1721149715216,6.2163,160.87,160.79,48.5933]
[1721149715415,6.2154,160.89,160.79,48.5933]
[1721149715739,20.0,160.88,160.79,48.5933]
[1721149716247,20.0,160.91,160.79,48.5933]
[1721149716542,45.0,160.9,160.79,48.5933]
[1721149716749,20.0,160.89,160.79,48.5933]
[1721149716936,26.2155,160.89,160.79,48.5933]
[1721149717429,6.2159,160.88,160.79,48.5933]
[1721149717637,20.0,160.87,160.79,48.5933]
[1721149717935,10.0,160.98,160.83,33.44]
[1721149718111,31.9218,161.0,160.83,33.44]
[1721149718318,31.9218,161.0,160.87,33.44]
[1721149718735,25.8408,161.0,160.88,6.5965]
[1721149719040,6.2124,160.97,160.88,6.5965]
[1721149719737,6.2119,160.99,160.88,6.5965]
[1721149720118,25.8408,161.0,160.88,6.5965]
[1721149720318,6.2126,160.97,160.88,6.5965]
[1721149720544,15.8408,161.0,160.88,6.5965]
[1721149720724,6.211,161.01,160.88,6.5965]
[1721149720921,6.211,161.01,160.89,16.3201]
[1721149721435,6.2112,161.0,160.89,16.3201]
[1721149722944,6.2116,160.99,160.89,16.3201]
[1721149723116,45.0,160.98,160.89,16.3201]
[1721149723321,51.212,160.98,160.89,16.3201]
[1721149723640,45.0,160.98,160.89,16.3201]
[1721149724442,26.11277158,161.06,160.91,33.44]
[1721149724646,6.2089,161.06,160.95,33.44]
[1721149724943,6.2085,161.07,160.97,6.397]
[1721149725142,6.2085,161.07,160.98,1.24041784]
[1721149725343,6.2085,161.07,160.99,1.2421139]
[1721149725849,6.2081,161.08,160.99,1.2421139]
[1721149727318,7.0482567,161.09,160.97,6.397]
[1721149727648,0.8405567,161.09,160.97,6.397]
[1721149728346,6.2081,161.08,160.97,6.397]
[1721149728565,7.0483567,161.09,160.97,6.397]
[1721149728856,45.0,161.08,160.97,6.397]
[1721149729222,20.0,161.07,160.97,6.397]
[1721149729433,45.0,161.08,160.97,6.397]
[1721149729721,6.2088,161.07,160.97,6.397]
[1721149729931,65.0,161.06,160.97,6.397]
[1721149730129,20.0,161.06,160.97,6.397]
[1721149730454,45.0,161.05,160.97,6.397]
[1721149730952,20.0,161.06,160.97,6.397]
[1721149731120,20.0,161.07,160.98,1.24152002]
[1721149731315,20.0,161.07,160.97,6.397]
[1721149731521,26.2084,161.07,160.97,6.397]
[1721149731823,45.0,161.06,160.97,6.397]
[1721149732044,20.0,161.07,160.97,6.397]
[1721149732251,51.2089,161.06,160.97,6.397]
[1721149732735,45.0,161.06,160.97,6.397]
[1721149733450,6.2103,161.03,160.97,6.397]
[1721149733654,20.0,161.05,160.97,6.397]
[1721149733829,26.2092,161.05,160.97,6.397]
[1721149734328,20.0,161.05,160.97,6.397]
[1721149734528,6.2081,161.08,160.97,7.08100451]
[1721149734854,7.0482567,161.09,160.98,16.6623]
[1721149735156,45.0,161.08,160.99,0.68391953]
[1721149735655,45.0,161.08,160.99,34.12391953]
[1721149735849,0.8405567,161.09,160.99,34.12391953]
[1721149736735,0.8405567,161.09,161.0,1.23956359]
[1721149736936,0.8405567,161.09,161.0,46.23956359]
[1721149738328,0.8405567,161.09,161.04,6.2707]
[1721149738529,0.8405567,161.09,161.05,1.23917875]
[1721149740757,0.8405567,161.09,161.04,39.7107]
[1721149742361,0.8405567,161.09,161.0,39.5806]
[1721149742539,6.2081,161.08,161.0,6.1406]
[1721149742741,6.2084,161.07,161.0,6.1406]
[1721149742957,6.2093,161.05,161.0,6.1406]
[1721149743134,6.2097,161.04,160.96,39.5806]
[1721149743338,6.2087,161.07,160.96,39.5806]
[1721149743594,65.0,161.06,160.96,39.5806]
[1721149744256,0.8405567,161.09,160.96,39.5806]
[1721149744443,65.8405567,161.09,160.96,58.2606]
[1721149744645,20.8405567,161.09,160.96,58.2606]
[1721149744863,20.8405567,161.09,161.01,33.44]
[1721149745062,0.8405567,161.09,161.01,33.44]
[1721149745857,20.8405567,161.09,161.01,33.44]
[1721149746439,0.8405567,161.09,161.01,33.44]
[1721149746960,20.8405567,161.09,161.01,33.44]
[1721149747141,0.8405567,161.09,161.01,33.44]
[1721149747649,0.8405567,161.09,161.02,15.4932]
[1721149748766,0.8405567,161.09,161.03,6.11]
[1721149749636,0.8405567,161.09,161.05,33.44]
[1721149750562,0.8405567,161.09,161.03,6.11]
[1721149750746,0.8405567,161.09,161.03,7.1435483]
[1721149751862,0.8405567,161.09,161.03,6.11]
[1721149752773,0.8405567,161.09,161.04,45.0]
[1721149752961,0.8405567,161.09,161.05,33.76650473]
[1721149753448,0.8405567,161.09,161.05,33.44]
[1721149753864,0.8405567,161.09,161.05,52.12]
[1721149754053,0.8405567,161.09,161.06,45.0]
[1721149754433,0.8405567,161.09,161.05,33.44]
[1721149754637,0.8405567,161.09,161.06,1.1848198]
[1721149755069,0.8405567,161.09,161.04,33.44]
[1721149756740,0.8405567,161.09,161.05,0.7283832]
[1721149756950,0.8405567,161.09,161.04,33.44]
[1721149757150,0.8405567,161.09,161.05,0.54948666]
[1721149757440,0.8405567,161.09,161.04,52.12]
[1721149757769,0.8405567,161.09,161.05,45.0]
[1721149758056,0.8405567,161.09,161.06,1.2411832]
[1721149758260,0.8405567,161.09,161.05,45.0]
[1721149758557,0.8405567,161.09,161.07,1.24117878]
[1721149758941,0.8405567,161.09,161.08,1.24040841]
[1721149759167,0.8405567,161.09,161.04,52.12]
[1721149759649,0.8405567,161.09,161.05,45.0]
[1721149760269,0.8405567,161.09,161.05,63.68]
[1721149760643,0.8405567,161.09,161.05,45.0]
[1721149760952,0.8405567,161.09,161.06,1.24121993]
[1721149761855,0.8405567,161.09,161.04,52.12]
[1721149762263,0.8405567,161.09,161.05,63.85]
[1721149762843,0.8405567,161.09,161.08,33.44]
[1721149763055,0.8405567,161.09,161.08,34.68103422]
[1721149763741,0.8405567,161.09,161.08,79.68103422]
[1721149764549,0.8405567,161.09,161.08,78.44]
[1721149766257,0.8405567,161.09,161.08,74.63]
[1721149766456,0.8405567,161.09,161.08,93.31]
[1721149766774,6.5553,161.18,161.08,93.31]
[1721149767070,16.2507,161.2,161.12,29.63]
[1721149769337,16.2507,161.2,161.09,18.68]
[1721149769338,16.2507,161.2,161.15,29.63]
[1721149769758,6.6512,161.23,161.15,29.63]
[1721149770553,12.8538,161.23,161.15,29.63]
[1721149770851,12.8538,161.23,161.16,1.24067262]
[1721149771156,12.8538,161.23,161.15,29.63]
[1721149771344,6.6512,161.23,161.12,29.63]
[1721149771545,6.6512,161.23,161.15,29.63]
[1721149771877,6.6512,161.23,161.16,0.68142736]
[1721149772075,6.203,161.22,161.15,29.63]
[1721149772377,6.6512,161.23,161.15,29.63]
[1721149772676,12.8536,161.23,161.15,29.63]
[1721149772889,6.6512,161.23,161.15,29.63]
[1721149773179,12.8535,161.23,161.15,29.63]
[1721149773348,6.6512,161.23,161.16,1.24069039]
[1721149773544,6.6512,161.23,161.15,29.63]
[1721149773545,6.2033,161.21,161.15,29.63]
[1721149773776,6.2033,161.21,161.12,29.63]
[1721149773970,6.2028,161.22,161.12,29.63]
[1721149774169,12.8536,161.23,161.12,29.63]
[1721149774352,6.2027,161.22,161.12,29.63]
[1721149774867,12.8536,161.23,161.12,29.63]
[1721149775588,6.6512,161.23,161.12,29.63]
[1721149775870,6.6512,161.23,161.15,29.63]
[1721149776079,6.6512,161.23,161.16,1.24068974]
[1721149776967,6.6512,161.23,161.15,29.63]
[1721149778678,6.2027,161.22,161.15,29.63]
[1721149778844,6.2032,161.21,161.12,29.63]
[1721149779052,6.6512,161.23,161.12,29.63]
[1721149779254,45.0,161.22,161.12,29.63]
[1721149779756,6.2031,161.21,161.12,29.63]
[1721149780073,6.2039,161.19,161.12,29.63]
[1721149780270,60.5069,161.22,161.12,29.63]
[1721149780478,6.204,161.19,161.12,29.63]
[1721149780677,6.204,161.19,161.07,6.4309]
[1721149780678,6.2042,161.18,161.09,29.63]
[1721149780978,6.2041,161.19,161.09,29.63]
[1721149781183,51.2043,161.18,161.09,29.63]
[1721149781991,45.0,161.18,161.12,29.63]
[1721149782192,6.6512,161.23,161.12,29.63]
[1721149782487,6.2031,161.21,161.12,29.63]
[1721149782697,62.39906012,161.2,161.12,29.63]
[1721149782857,20.0,161.19,161.12,29.63]
[1721149783275,26.2039,161.19,161.12,29.63]
[1721149783487,6.2042,161.18,161.12,29.63]
[1721149783784,20.0,161.19,161.12,29.63]
[1721149784480,20.0,161.19,161.13,1.2409985]
[1721149784989,6.2043,161.18,161.13,1.2409985]
[1721149785191,6.2039,161.19,161.13,1.2409985]
[1721149785366,6.2039,161.19,161.12,29.63]
[1721149786385,6.6512,161.23,161.12,29.63]
[1721149786585,11.19540106,161.22,161.12,29.63]
[1721149786786,6.2031,161.21,161.12,29.63]
[1721149786975,6.6512,161.23,161.12,29.63]
[1721149787177,6.2031,161.21,161.13,1.24091423]
[1721149787490,6.6512,161.23,161.12,29.63]
[1721149787491,6.2035,161.2,161.12,29.63]
[1721149787791,6.2031,161.21,161.12,29.63]
[1721149788095,6.6512,161.23,161.12,29.63]
[1721149788267,6.2035,161.2,161.12,29.63]
[1721149789081,6.2031,161.21,161.12,29.63]
[1721149789288,6.2038,161.19,161.12,29.63]
[1721149789478,6.2035,161.2,161.12,29.63]
[1721149789677,6.2035,161.2,161.13,1.24098882]
[1721149789985,6.2032,161.21,161.13,1.24098882]
[1721149790176,62.39871723,161.2,161.12,29.63]
[1721149790371,51.2035,161.2,161.12,29.63]
[1721149790579,45.0,161.2,161.13,1.07300398]
[1721149790886,6.2032,161.21,161.13,1.07300398]
[1721149791088,11.19527017,161.2,161.14,1.24093868]
[1721149791292,20.0,161.22,161.15,1.24074117]
[1721149791470,11.19494033,161.21,161.12,29.63]
[1721149791673,11.19485873,161.2,161.12,29.63]
[1721149791890,20.0,161.22,161.12,29.63]
[1721149792066,11.19477028,161.21,161.12,29.63]
[1721149792268,11.19477028,161.2,161.13,1.22436101]
[1721149792494,26.2027,161.22,161.13,1.22436101]
[1721149792495,11.19477028,161.21,161.13,1.22436101]
[1721149792789,11.19483269,161.2,161.15,29.63]
[1721149792995,21.7455,161.24,161.15,29.63]
[1721149793292,11.19392723,161.23,161.16,1.24067681]
[1721149793489,11.19392723,161.22,161.16,1.24067681]
[1721149793698,11.19392723,161.21,161.16,1.24067681]
[1721149793895,15.5436,161.24,161.18,29.63]